fUSD/lending_fUSD_20250620
["ID","MTS","AMOUNT","RATE_DAILY","PERIOD"]
[366750303,1750432232668,-5304.78,0.00025829,2]
[366750305,1750432232678,-2388.62127449,0.00025883,2]
[366750307,1750432232689,-921.97931328,0.000259,14]
[366750309,1750432232699,-1229.6221,0.00025946,2]
[366750311,1750432232709,-834.11677829,0.00025986,2]
[366750313,1750432232720,-2137.0,0.00026,2]
[366750315,1750432232730,-162.01,0.00026027,2]
[366750317,1750432232741,-180.0,0.00026032,2]
[366750319,1750432232750,-151.0,0.00026046,2]
[366750321,1750432232761,-151.0,0.00026046,2]
[366750322,1750432232771,-151.54616944,0.00026046,2]
[366750324,1750432232781,-447.04644017,0.00026046,2]
[366750326,1750432232791,-1000.0,0.00026046,2]
[366750328,1750432232801,-1000.0,0.00026046,2]
[366750330,1750432232811,-1000.0,0.00026046,2]
[366750332,1750432232821,-500.0,0.00026046,2]
[366750334,1750432232830,-1000.0,0.00026046,2]
[366750335,1750432232840,-638.0685241,0.00026046,2]
[366750336,1750432232851,-1000.0,0.00026046,2]
[366750338,1750432232861,-500.0,0.00026046,2]
[366750340,1750432232871,-1000.0,0.00026046,2]
[366750342,1750432232882,-1000.0,0.00026046,2]
[366750372,1750432233181,-500.0,0.00026046,2]
[366750375,1750432233198,-1000.0,0.00026046,2]
[366750377,1750432233209,-1000.0,0.00026046,2]
[366750379,1750432233222,-500.0,0.00026046,2]
[366750381,1750432233232,-1000.0,0.00026046,2]
[366750383,1750432233242,-500.0,0.00026046,2]
[366750385,1750432233254,-500.0,0.00026046,2]
[366750387,1750432233264,-1000.0,0.00026046,2]
[366750389,1750432233274,-500.0,0.00026046,2]
[366750391,1750432233285,-1000.0,0.00026046,2]
[366750393,1750432233296,-500.0,0.00026046,2]
[366750395,1750432233306,-1000.0,0.00026046,2]
[366750397,1750432233317,-200.02597362,0.00026046,2]
[366750399,1750432233327,-1000.0,0.00026046,2]
[366750401,1750432233337,-1000.0,0.00026046,2]
[366750403,1750432233347,-1000.0,0.00026046,2]
[366750405,1750432233358,-1000.0,0.00026046,2]
[366750407,1750432233368,-1000.0,0.00026046,2]
[366750409,1750432233378,-1000.0,0.00026046,2]
[366750411,1750432233389,-1023.46142122,0.00026046,2]
[366750413,1750432233402,-23900.0,0.00026062,2]
[366750415,1750432233414,-2907.66,0.000261,2]
[366750417,1750432233424,-2907.66,0.000262,2]
[366750419,1750432233435,-2907.66,0.000262,2]
[366750422,1750432233446,-250.0,0.00026214,2]
[366750424,1750432233456,-921.97931319,0.00026348,14]
[366750425,1750432233466,-833.309953,0.0002645,8]
[366750428,1750432233478,-282.0,0.00026477,15]
[366750429,1750432233488,-350.0,0.00026525,2]
[366750432,1750432233498,-600.0,0.000266,9]
[366750434,1750432233509,-500.0,0.00026614,2]
[366750436,1750432233521,-821.6626,0.00026614,2]
[366750438,1750432233531,-621.25220224,0.00026614,2]
[366750440,1750432233540,-160.68521624,0.00026615,2]
[366750442,1750432233550,-1000.0,0.00026615,2]
[366750444,1750432233560,-927.1331,0.00026616,2]
[366750446,1750432233570,-621.25220212,0.00026662,2]
[366750448,1750432233580,-166.81,0.00026674,2]
[366750450,1750432233590,-208.65649058,0.00026694,2]
[366750452,1750432233601,-5601.65808306,0.00026694,2]
[366750454,1750432233611,-431.89,0.00026695,3]
[366750456,1750432233622,-1300.0,0.000267,9]
[366750458,1750432233632,-277.71743426,0.00026704,2]
[366750460,1750432233642,-4086.70908238,0.00026705,2]
[366750462,1750432233652,-264.15,0.00026706,2]
[366750464,1750432233662,-621.25220212,0.0002671,2]
[366750466,1750432233672,-830.44088,0.0002671,2]
[366750468,1750432233681,-505.84075067,0.00026714,4]
[366750470,1750432233692,-578.90625907,0.00026714,2]
[366750471,1750432233702,-500.0,0.00026714,2]
[366750474,1750432233712,-500.0,0.00026714,2]
[366750476,1750432233725,-578.90625907,0.00026714,2]
[366750477,1750432233734,-500.0,0.00026714,2]
[366750479,1750432233744,-578.90625907,0.00026714,2]
[366750481,1750432233754,-198.22930362,0.00026714,2]
[366750483,1750432233764,-215.48572222,0.00026714,2]
[366750485,1750432233774,-578.90625907,0.00026714,2]
[366750487,1750432233784,-221.5833996,0.00026714,2]
[366750489,1750432233794,-578.90625907,0.00026714,2]
[366750492,1750432233805,-500.0,0.00026714,2]
[366750494,1750432233814,-578.90625907,0.00026714,2]
[366750495,1750432233824,-578.90625907,0.00026714,2]
[366750498,1750432233833,-578.90625907,0.00026714,2]
[366750499,1750432233843,-578.90625907,0.00026714,2]
[366750502,1750432233854,-578.90625907,0.00026714,2]
[366750503,1750432233863,-578.90625907,0.00026714,2]
[366750505,1750432233873,-578.90625907,0.00026714,2]
[366750507,1750432233882,-578.90625907,0.00026714,2]
[366750508,1750432233892,-578.90625907,0.00026714,2]
[366750509,1750432233901,-578.90625907,0.00026714,2]
[366750510,1750432233912,-578.90625907,0.00026714,2]
[366750511,1750432233922,-578.90625907,0.00026714,2]
[366750512,1750432233933,-578.90625907,0.00026714,2]
[366750513,1750432233944,-578.90625907,0.00026714,2]
[366750514,1750432233954,-578.90625907,0.00026714,2]
[366750515,1750432233963,-578.90625907,0.00026714,2]
[366750516,1750432233975,-578.90625907,0.00026714,2]
[366750517,1750432233985,-578.90625907,0.00026714,2]
[366750518,1750432233995,-578.90625907,0.00026714,2]
[366750519,1750432234006,-578.90625907,0.00026714,2]
[366750520,1750432234016,-578.90625907,0.00026714,2]
[366750521,1750432234026,-578.90625907,0.00026714,2]
[366750522,1750432234036,-578.90625907,0.00026714,2]
[366750523,1750432234046,-578.90625907,0.00026714,2]
[366750525,1750432234056,-578.90625907,0.00026714,2]
[366750527,1750432234066,-578.90625907,0.00026714,2]
[366750529,1750432234077,-578.90625907,0.00026714,2]
[366750531,1750432234087,-578.90625907,0.00026714,2]
[366750532,1750432234097,-578.90625907,0.00026714,2]
[366750533,1750432234120,-578.90625907,0.00026714,2]
[366750534,1750432234133,-578.90625907,0.00026714,2]
[366750535,1750432234143,-578.90625907,0.00026714,2]
[366750537,1750432234154,-578.90625907,0.00026714,2]
[366750539,1750432234164,-578.90625907,0.00026714,2]
[366750541,1750432234175,-578.90625907,0.00026714,2]
[366750543,1750432234187,-578.90625907,0.00026714,2]
[366750545,1750432234200,-578.90625907,0.00026714,2]
[366750547,1750432234211,-578.90625907,0.00026714,2]
[366750548,1750432234224,-578.90625907,0.00026714,2]
[366750549,1750432234235,-578.90625907,0.00026714,2]
[366750550,1750432234247,-578.90625907,0.00026714,2]
[366750551,1750432234260,-578.90625907,0.00026714,2]
[366750552,1750432234272,-578.90625907,0.00026714,2]
[366750553,1750432234284,-578.90625907,0.00026714,2]
[366750554,1750432234295,-578.90625907,0.00026714,2]
[366750555,1750432234307,-578.90625907,0.00026714,2]
[366750556,1750432234318,-578.90625907,0.00026714,2]
[366750557,1750432234330,-578.90625907,0.00026714,2]
[366750558,1750432234341,-578.90625907,0.00026714,2]
[366750559,1750432234352,-578.90625907,0.00026714,2]
[366750560,1750432234363,-578.90625907,0.00026714,2]
[366750561,1750432234374,-578.90625907,0.00026714,2]
[366750563,1750432234385,-578.90625907,0.00026714,2]
[366750565,1750432234396,-578.90625907,0.00026714,2]
[366750567,1750432234407,-578.90625907,0.00026714,2]
[366750569,1750432234418,-578.90625907,0.00026714,2]
[366750571,1750432234430,-578.90625907,0.00026714,2]
[366750573,1750432234441,-578.90625907,0.00026714,2]
[366750575,1750432234451,-578.90625907,0.00026714,2]
[366750577,1750432234462,-578.90625907,0.00026714,2]
[366750578,1750432234475,-490.0,0.00026714,4]
[366750579,1750432234487,-564.4336026,0.00026714,2]
[366750580,1750432234499,-564.4336026,0.00026714,2]
[366750581,1750432234511,-564.4336026,0.00026714,2]
[366750582,1750432234523,-564.4336026,0.00026714,2]
[366750583,1750432234534,-564.4336026,0.00026714,2]
[366750584,1750432234546,-564.4336026,0.00026714,2]
[366750585,1750432234561,-564.4336026,0.00026714,2]
[366750586,1750432234571,-564.4336026,0.00026714,2]
[366750587,1750432234580,-564.4336026,0.00026714,2]
[366750588,1750432234590,-564.4336026,0.00026714,2]
[366750589,1750432234600,-564.4336026,0.00026714,2]
[366750590,1750432234610,-564.4336026,0.00026714,2]
[366750591,1750432234621,-564.4336026,0.00026714,2]
[366750592,1750432234631,-564.4336026,0.00026714,2]
[366750593,1750432234641,-564.4336026,0.00026714,2]
[366750594,1750432234650,-564.4336026,0.00026714,2]
[366750595,1750432234661,-564.4336026,0.00026714,2]
[366750596,1750432234671,-564.4336026,0.00026714,2]
[366750597,1750432234682,-564.4336026,0.00026714,2]
[366750598,1750432234692,-564.4336026,0.00026714,2]
[366750599,1750432234702,-564.4336026,0.00026714,2]
[366750600,1750432234713,-564.4336026,0.00026714,2]
[366750601,1750432234724,-564.4336026,0.00026714,2]
[366750602,1750432234734,-391.34236862,0.00026714,4]
[366750603,1750432234744,-564.43360258,0.00026714,2]
[366750604,1750432234755,-371.74262987,0.00026714,4]
[366750605,1750432234766,-490.0,0.00026714,4]
[366750606,1750432234776,-490.0,0.00026714,4]
[366750607,1750432234786,-490.0,0.00026714,4]
[366750608,1750432234796,-490.0,0.00026714,4]
[366750609,1750432234806,-332.80526995,0.00026714,4]
[366750610,1750432234816,-490.0,0.00026714,4]
[366750611,1750432234827,-1497.206551,0.00026714,4]
[366750612,1750432234837,-490.0,0.00026714,4]
[366750613,1750432234847,-490.0,0.00026714,4]
[366750614,1750432234858,-490.0,0.00026714,4]
[366750615,1750432234868,-105.44494731,0.00026714,4]
[366750616,1750432234923,-384.55505269,0.00026714,4]
[366750617,1750432234933,-490.0,0.00026714,4]
[366750618,1750432234941,-510.41,0.00026714,4]
[366750619,1750432234952,-1223.01532231,0.00026714,4]
[366750620,1750432234965,-10.86891769,0.00026714,4]
[366750621,1750432234977,-159.469271,0.00026714,4]
[366750622,1750432234988,-490.0,0.00026714,4]
[366750623,1750432235003,-152.3464,0.00026714,4]
[366750624,1750432235014,-490.0,0.00026714,4]
[366750625,1750432235025,-490.0,0.00026714,4]
[366750626,1750432235036,-490.0,0.00026714,4]
[366750627,1750432235045,-490.0,0.00026714,4]
[366750628,1750432235056,-2431.69,0.00026714,4]
[366750629,1750432235067,-490.0,0.00026714,4]
[366750630,1750432235077,-490.0,0.00026714,4]
[366750631,1750432235087,-490.0,0.00026714,4]
[366750632,1750432235097,-490.0,0.00026714,4]
[366750633,1750432235107,-490.0,0.00026714,4]
[366750634,1750432235118,-1592.9,0.00026714,4]
[366750635,1750432235128,-490.0,0.00026714,4]
[366750636,1750432235137,-490.0,0.00026714,4]
[366750637,1750432235147,-576.53,0.00026714,4]
[366750638,1750432235158,-490.0,0.00026714,4]
[366750639,1750432235169,-490.0,0.00026714,4]
[366750640,1750432235179,-855.36,0.00026714,4]
[366750641,1750432235193,-490.0,0.00026714,4]
[366750642,1750432235203,-490.0,0.00026714,4]
[366750643,1750432235214,-490.0,0.00026714,4]
[366750644,1750432235226,-490.0,0.00026714,4]
[366750645,1750432235237,-490.0,0.00026714,4]
[366750646,1750432235248,-490.0,0.00026714,4]
[366750647,1750432235258,-490.0,0.00026714,4]
[366750648,1750432235270,-490.0,0.00026714,4]
[366750649,1750432235280,-920.59,0.00026714,4]
[366750650,1750432235290,-490.0,0.00026714,4]
[366750651,1750432235301,-700.54,0.00026714,4]
[366750652,1750432235311,-860.54,0.00026714,4]
[366750653,1750432235322,-490.0,0.00026714,4]
[366750654,1750432235332,-645.2,0.00026714,4]
[366750655,1750432235343,-490.0,0.00026714,4]
[366750656,1750432235353,-1564.95,0.00026714,4]
[366750657,1750432235364,-1059.48,0.00026714,4]
[366750658,1750432235374,-490.0,0.00026714,4]
[366750659,1750432235385,-100.30019496,0.00026714,4]
[366750660,1750432235398,-331.14851368,0.00026714,4]
[366750675,1750432237992,-6443.7957,0.00025946,2]
[366750676,1750432238002,-58.55129136,0.00026714,4]
[366750677,1750432238013,-490.0,0.00026714,4]
[366750678,1750432238023,-490.0,0.00026714,4]
[366750679,1750432238035,-490.0,0.00026714,4]
[366750680,1750432238045,-1721.76,0.00026714,4]
[366750681,1750432238055,-500.0,0.00026714,4]
[366750682,1750432238066,-609.82,0.00026714,4]
[366750683,1750432238076,-984.23,0.00026714,4]
[366750684,1750432238087,-935.93,0.00026714,4]
[366750685,1750432238097,-2596.55,0.00026714,4]
[366750686,1750432238108,-607.78,0.00026714,4]
[366750687,1750432238118,-490.0,0.00026714,4]
[366750688,1750432238129,-490.0,0.00026714,2]
[366750689,1750432238139,-490.0,0.00026714,4]
[366750690,1750432238150,-1100.93,0.00026714,4]
[366750691,1750432238161,-490.0,0.00026715,4]
[366750692,1750432238172,-490.0,0.00026715,4]
[366750693,1750432238183,-490.0,0.00026715,4]
[366750694,1750432238195,-510.62,0.00026715,4]
[366750695,1750432238206,-585.91,0.00026715,4]
[366750696,1750432238216,-490.0,0.00026715,4]
[366750697,1750432238227,-490.0,0.00026715,4]
[366750698,1750432238239,-490.0,0.00026715,4]
[366750699,1750432238249,-592.06,0.00026715,4]
[366750700,1750432238259,-940.56,0.00026715,4]
[366750701,1750432238270,-521.08,0.00026715,4]
[366750703,1750432238280,-490.0,0.00026715,4]
[366750705,1750432238290,-490.0,0.00026715,4]
[366750707,1750432238300,-496.84,0.00026715,4]
[366750709,1750432238310,-490.0,0.00026715,4]
[366750711,1750432238320,-490.0,0.00026715,4]
[366750713,1750432238330,-490.0,0.00026715,4]
[366750716,1750432238340,-814.03,0.00026715,4]
[366750719,1750432238350,-490.0,0.00026715,4]
[366750722,1750432238360,-490.0,0.00026715,4]
[366750725,1750432238370,-490.0,0.00026715,4]
[366750727,1750432238381,-674.8,0.00026715,4]
[366750729,1750432238390,-490.0,0.00026715,4]
[366750732,1750432238401,-490.0,0.00026715,4]
[366750734,1750432238411,-490.0,0.00026715,4]
[366750736,1750432238421,-490.0,0.00026715,4]
[366750738,1750432238432,-490.0,0.00026715,4]
[366750740,1750432238442,-490.0,0.00026715,4]
[366750742,1750432238453,-490.0,0.00026715,4]
[366750744,1750432238463,-490.0,0.00026715,4]
[366750746,1750432238475,-490.0,0.00026715,4]
[366750748,1750432238485,-490.0,0.00026715,4]
[366750750,1750432238495,-490.0,0.00026715,4]
[366750752,1750432238506,-490.0,0.00026715,4]
[366750754,1750432238516,-490.0,0.00026715,4]
[366750756,1750432238525,-490.0,0.00026715,4]
[366750758,1750432238535,-490.0,0.00026715,4]
[366750760,1750432238545,-490.0,0.00026715,4]
[366750762,1750432238555,-490.0,0.00026715,4]
[366750764,1750432238566,-1582.91,0.00026715,4]
[366750766,1750432238575,-490.0,0.00026715,4]
[366750768,1750432238585,-566.46,0.00026715,4]
[366750770,1750432238595,-490.0,0.00026715,4]
[366750797,1750432238833,-833.97,0.00026715,4]
[366750801,1750432238886,-490.0,0.00026715,4]
[366750803,1750432238900,-660.92,0.00026715,4]
[366750805,1750432238910,-506.59060626,0.00026715,4]
[366750807,1750432238920,-490.0,0.00026715,4]
[366750809,1750432238930,-490.0,0.00026715,4]
[366750811,1750432238940,-490.0,0.00026715,4]
[366750813,1750432238949,-982.8,0.00026715,4]
[366750815,1750432238959,-490.0,0.00026715,4]
[366750817,1750432238970,-490.0,0.00026715,4]
[366750819,1750432238981,-490.0,0.00026715,4]
[366750821,1750432238991,-532.43,0.00026715,4]
[366750823,1750432239000,-490.0,0.00026715,4]
[366750825,1750432239010,-490.0,0.00026715,4]
[366750827,1750432239019,-490.0,0.00026715,4]
[366750829,1750432239029,-506.74,0.00026715,4]
[366750831,1750432239039,-490.0,0.00026715,4]
[366750833,1750432239048,-490.0,0.00026715,4]
[366750835,1750432239058,-243.98240238,0.00026715,4]
[366750878,1750432239525,-246.01759762,0.00026715,4]
[366750880,1750432239535,-403.7565099,0.00026715,4]
[366750882,1750432239546,-368.95383044,0.00026715,4]
[366750884,1750432239560,-121.04616956,0.00026715,4]
[366750886,1750432239570,-490.0,0.00026715,4]
[366750888,1750432239581,-490.0,0.00026715,4]
[366750890,1750432239591,-796.06,0.00026715,4]
[366750893,1750432239601,-490.0,0.00026715,4]
[366750895,1750432239612,-886.05,0.00026715,4]
[366750897,1750432239623,-195.79443479,0.00026715,4]
[366750899,1750432239635,-294.20556521,0.00026715,4]
[366750901,1750432239646,-490.0,0.00026715,4]
[366750904,1750432239658,-1393.48,0.00026715,4]
[366750906,1750432239668,-490.0,0.00026715,4]
[366750908,1750432239677,-490.0,0.00026715,4]
[366750910,1750432239687,-492.73,0.00026715,4]
[366750912,1750432239698,-476.71443479,0.00026715,4]
[366750914,1750432239710,-154.56556521,0.00026715,4]
[366750916,1750432239720,-607.3,0.00026715,4]
[366750919,1750432239734,-612.84,0.00026715,4]
[366750920,1750432239743,-490.0,0.00026715,4]
[366750923,1750432239754,-283.52443479,0.00026715,4]
[366750926,1750432239779,-206.47556521,0.00026715,4]
[366750928,1750432239789,-544.39,0.00026715,4]
[366750931,1750432239804,-347.57443479,0.00026715,4]
[366750953,1750432240006,-490.0,0.00026714,4]
[366750955,1750432240016,-142.42556521,0.00026715,4]
[366750957,1750432240027,-490.0,0.00026715,4]
[366750959,1750432240037,-490.0,0.00026715,4]
[366750961,1750432240047,-490.0,0.00026715,4]
[366750963,1750432240057,-567.11,0.00026715,4]
[366750965,1750432240067,-490.0,0.00026715,4]
[366750967,1750432240078,-490.0,0.00026715,4]
[366750970,1750432240088,-500.0,0.00026715,4]
[366750972,1750432240098,-490.0,0.00026715,4]
[366750974,1750432240108,-490.0,0.00026715,4]
[366750976,1750432240118,-490.0,0.00026715,4]
[366750978,1750432240129,-490.0,0.00026715,4]
[366750980,1750432240140,-495.92808722,0.00026715,4]
[366750982,1750432240150,-576.15,0.00026715,4]
[366750984,1750432240160,-490.0,0.00026715,4]
[366750986,1750432240170,-615.12,0.00026715,4]
[366750988,1750432240180,-525.29,0.00026715,4]
[366750990,1750432240193,-625.22,0.00026715,4]
[366750993,1750432240205,-656.99,0.00026715,4]
[366750995,1750432240215,-598.02,0.00026715,4]
[366750997,1750432240226,-490.0,0.00026715,4]
[366750999,1750432240238,-490.0,0.00026715,4]
[366751002,1750432240254,-490.0,0.00026715,4]
[366751004,1750432240264,-1172.82,0.00026715,4]
[366751006,1750432240275,-490.0,0.00026715,4]
[366751008,1750432240286,-885.03,0.00026715,4]
[366751010,1750432240296,-490.0,0.00026715,4]
[366751012,1750432240307,-490.0,0.00026715,4]
[366751014,1750432240318,-490.0,0.00026715,4]
[366751016,1750432240328,-490.0,0.00026715,4]
[366751018,1750432240338,-711.49,0.00026715,4]
[366751020,1750432240348,-490.0,0.00026715,4]
[366751022,1750432240358,-490.0,0.00026715,4]
[366751024,1750432240368,-830.44089,0.0002675,2]
[366751027,1750432240378,-621.25220212,0.00026758,2]
[366751029,1750432240388,-500.0,0.00026759,2]
[366751031,1750432240398,-500.0,0.00026759,2]
[366751033,1750432240408,-500.0,0.00026759,2]
[366751035,1750432240418,-500.0,0.00026759,2]
[366751037,1750432240429,-500.0,0.00026759,2]
[366751039,1750432240439,-500.0,0.00026759,2]
[366751041,1750432240449,-500.0,0.00026759,2]
[366751043,1750432240460,-500.0,0.00026759,2]
[366751045,1750432240470,-500.0,0.00026759,2]
[366751047,1750432240482,-500.0,0.00026759,2]
[366751049,1750432240492,-500.0,0.00026759,2]
[366751051,1750432240502,-500.0,0.00026759,2]
[366751053,1750432240512,-500.0,0.00026759,2]
[366751055,1750432240523,-500.0,0.00026759,2]
[366751057,1750432240533,-500.0,0.00026759,2]
[366751059,1750432240542,-500.0,0.00026759,2]
[366751061,1750432240552,-500.0,0.00026759,2]
[366751063,1750432240562,-500.0,0.00026759,2]
[366751065,1750432240572,-500.0,0.00026759,2]
[366751067,1750432240582,-500.0,0.00026759,2]
[366751069,1750432240591,-500.0,0.00026759,2]
[366751071,1750432240602,-4086.70908238,0.0002676,2]
[366751073,1750432240611,-200.0,0.0002677,2]
[366751075,1750432240621,-202.20932154,0.00026773,2]
[366751077,1750432240631,-160.15771111,0.00026773,2]
[366751079,1750432240642,-500.0,0.00026773,2]
[366751081,1750432240651,-371.97162593,0.00026773,2]
[366751083,1750432240661,-500.0,0.00026773,2]
[366751086,1750432240674,-500.0,0.00026773,2]
[366751088,1750432240685,-16346.8363295,0.0002679,2]
[366751090,1750432240700,-6186.91255066,0.00026792,2]
[366751093,1750432240715,-431.89,0.00026792,2]
[366751102,1750432240803,-524.05,0.00026792,2]
[366751104,1750432240815,-66417.91093214,0.00026792,2]
[366751106,1750432240826,-44953.7999062,0.00026794,2]
[366751108,1750432240836,-921.97931319,0.00026797,15]
[366751111,1750432240846,-500.0,0.00026799,4]
[366751113,1750432240856,-713.08,0.000268,2]
[366751115,1750432240866,-9999.0,0.000268,2]
[366751117,1750432240876,-19930.000001,0.000268,2]
[366751119,1750432240886,-22222.0,0.000268,4]
[366751121,1750432240896,-2000.0,0.000268,9]
[366751123,1750432240907,-256.77237661,0.00026801,2]
[366751125,1750432240917,-269.73997049,0.00026801,2]
[366751127,1750432240927,-500.0,0.00026801,2]
[366751129,1750432240936,-500.0,0.00026801,2]
[366751131,1750432240946,-201.92355862,0.00026801,2]
[366751133,1750432240956,-500.0,0.00026801,2]
[366751135,1750432240966,-500.0,0.00026801,2]
[366751137,1750432240977,-500.0,0.00026801,2]
[366751139,1750432240987,-500.0,0.00026801,2]
[366751141,1750432240996,-500.0,0.00026801,2]
[366751143,1750432241006,-500.0,0.00026801,2]
[366751145,1750432241016,-500.0,0.00026801,2]
[366751147,1750432241026,-500.0,0.00026801,2]
[366751149,1750432241035,-500.0,0.00026801,2]
[366751151,1750432241045,-500.0,0.00026801,2]
[366751153,1750432241055,-500.0,0.00026801,2]
[366751155,1750432241065,-500.0,0.00026801,2]
[366751157,1750432241077,-500.0,0.00026801,2]
[366751159,1750432241087,-500.0,0.00026801,2]
[366751161,1750432241096,-500.0,0.00026801,2]
[366751163,1750432241106,-500.0,0.00026801,2]
[366751165,1750432241116,-500.0,0.00026801,2]
[366751167,1750432241126,-413.55726747,0.00026801,2]
[366751169,1750432241136,-500.0,0.00026801,2]
[366751172,1750432241146,-500.0,0.00026801,2]
[366751175,1750432241168,-500.0,0.00026801,2]
[366751177,1750432241179,-500.0,0.00026801,2]
[366751179,1750432241194,-500.0,0.00026801,2]
[366751181,1750432241204,-180.02924475,0.00026801,2]
[366751183,1750432241214,-600.0,0.00026801,2]
[366751185,1750432241224,-490.0,0.00026802,4]
[366751187,1750432241235,-490.0,0.00026802,4]
[366751189,1750432241246,-490.0,0.00026802,4]
[366751191,1750432241258,-490.0,0.00026802,4]
[366751194,1750432241268,-490.0,0.00026802,4]
[366751195,1750432241279,-490.0,0.00026802,4]
[366751198,1750432241290,-490.0,0.00026802,4]
[366751200,1750432241300,-490.0,0.00026802,4]
[366751202,1750432241311,-490.0,0.00026802,4]
[366751204,1750432241322,-651.74,0.00026802,4]
[366751206,1750432241333,-490.0,0.00026802,4]
[366751208,1750432241344,-490.0,0.00026802,4]
[366751210,1750432241354,-490.0,0.00026802,4]
[366751212,1750432241364,-490.0,0.00026802,4]
[366751214,1750432241375,-490.0,0.00026802,4]
[366751216,1750432241386,-490.0,0.00026802,4]
[366751218,1750432241397,-598.84,0.00026802,4]
[366751220,1750432241408,-490.0,0.00026802,4]
[366751222,1750432241419,-490.0,0.00026802,4]
[366751224,1750432241430,-490.0,0.00026802,4]
[366751226,1750432241440,-490.0,0.00026802,4]
[366751228,1750432241451,-490.0,0.00026802,4]
[366751230,1750432241461,-490.0,0.00026802,4]
[366751233,1750432241472,-490.0,0.00026802,4]
[366751235,1750432241485,-490.0,0.00026802,4]
[366751237,1750432241496,-250.0,0.00026802,4]
[366751239,1750432241507,-767.41,0.00026802,4]
[366751241,1750432241517,-490.0,0.00026802,4]
[366751243,1750432241528,-490.0,0.00026802,4]
[366751245,1750432241538,-490.0,0.00026802,4]
[366751247,1750432241548,-490.0,0.00026802,4]
[366751249,1750432241558,-490.0,0.00026802,4]
[366751251,1750432241568,-571.09,0.00026802,4]
[366751253,1750432241578,-490.0,0.00026802,4]
[366751255,1750432241589,-490.0,0.00026802,4]
[366751257,1750432241604,-490.0,0.00026802,4]
[366751259,1750432241614,-690.6,0.00026802,4]
[366751261,1750432241624,-490.0,0.00026802,4]
[366751263,1750432241634,-490.0,0.00026802,4]
[366751265,1750432241645,-490.0,0.00026802,4]
[366751267,1750432241654,-490.0,0.00026802,4]
[366751269,1750432241664,-490.0,0.00026802,4]
[366751271,1750432241675,-490.0,0.00026802,4]
[366751273,1750432241685,-490.0,0.00026802,4]
[366751275,1750432241695,-490.0,0.00026802,4]
[366751278,1750432241705,-490.0,0.00026802,4]
[366751279,1750432241715,-490.0,0.00026802,4]
[366751281,1750432241726,-490.0,0.00026802,4]
[366751284,1750432241736,-573.74,0.00026802,4]
[366751285,1750432241746,-490.0,0.00026802,4]
[366751288,1750432241757,-524.9,0.00026802,4]
[366751290,1750432241767,-490.0,0.00026802,4]
[366751292,1750432241777,-490.0,0.00026802,4]
[366751294,1750432241789,-490.0,0.00026802,4]
[366751296,1750432241799,-490.0,0.00026802,4]
[366751298,1750432241809,-490.0,0.00026802,4]
[366751299,1750432241819,-490.0,0.00026802,4]
[366751300,1750432241829,-490.0,0.00026802,4]
[366751301,1750432241839,-490.0,0.00026802,4]
[366751302,1750432241850,-564.34,0.00026802,4]
[366751303,1750432241860,-490.0,0.00026802,4]
[366751304,1750432241870,-490.0,0.00026802,4]
[366751305,1750432241880,-490.0,0.00026802,4]
[366751306,1750432241890,-490.0,0.00026802,4]